bitfinex/quotes_SOLUSD_20240808
["timestamp","ask_amount","ask_price","bid_price","bid_amount"]
[1723128549735,6.51549401,160.17,159.99,22.2909]
[1723128549932,16.3238,160.23,160.11,6.2455]
[1723128550338,6.2414,160.22,160.11,6.2455]
[1723128550535,6.5139317,160.23,160.15,6.2437]
[1723128550758,2.81108961,160.29,160.23,6.2409]
[1723128551049,6.2372,160.33,160.09,41.55]
[1723128551050,1.55970301,160.33,160.21,6.2417]
[1723128551231,6.2383,160.3,160.09,44.46841166]
[1723128551428,6.51334806,160.32,160.21,6.2416]
[1723128551623,6.51334806,160.32,160.1,20.34]
[1723128551824,12.75084806,160.32,160.1,0.34]
[1723128552047,6.51334806,160.32,160.1,0.34]
[1723128552251,6.51334806,160.32,160.1,20.34]
[1723128552472,41.55,160.3,160.07,6.6447]
[1723128552656,6.2396,160.27,160.08,0.17]
[1723128552950,47.7883,160.3,160.08,0.17]
[1723128553156,12.75084806,160.32,160.08,0.17]
[1723128553343,6.2386,160.3,160.08,45.17]
[1723128553650,6.2386,160.3,160.08,0.17]
[1723128553964,23.66692313,160.32,160.07,6.6447]
[1723128554166,41.55,160.26,160.07,6.6447]
[1723128554461,6.2406,160.24,160.07,6.6447]
[1723128554637,45.0,160.23,160.07,6.6447]
[1723128555036,6.51334806,160.32,160.07,6.6447]
[1723128555237,6.51334806,160.32,160.09,41.55]
[1723128555443,6.2371,160.33,160.22,6.241]
[1723128555767,8.07007294,160.32,160.09,41.55]
[1723128555952,6.2383,160.3,160.1,0.34]
[1723128556156,6.2383,160.3,160.07,6.6447]
[1723128556157,41.55,160.3,160.07,6.6447]
[1723128556344,41.55,160.3,160.08,20.0]
[1723128556662,6.2399,160.26,160.07,6.6447]
[1723128556864,41.55,160.3,160.07,6.6447]
[1723128557050,6.2394,160.28,160.07,6.6447]
[1723128557233,12.74797351,160.32,160.07,6.6447]
[1723128557441,44.42755447,160.34,160.09,41.55]
[1723128557666,44.42755447,160.34,160.09,49.42058733]
[1723128557873,50.94046313,160.34,160.1,0.17]
[1723128558038,24.98326313,160.34,160.1,0.17]
[1723128558242,9.39046313,160.34,160.1,0.17]
[1723128558449,2.87755447,160.34,160.1,20.17]
[1723128558647,6.2372,160.33,160.1,20.17]
[1723128558847,6.2376,160.32,160.1,20.17]
[1723128559140,54.58092066,160.35,160.1,20.17]
[1723128559335,54.58092066,160.35,160.11,0.17]
[1723128559668,57.39316467,160.35,160.11,0.17]
[1723128560166,15.5926,160.34,160.11,0.17]
[1723128560343,6.2399,160.26,160.07,9.49256557]
[1723128560668,6.2415,160.22,160.07,6.6447]
[1723128560963,6.2414,160.22,160.07,6.6447]
[1723128561165,1.56053092,160.22,160.07,6.6447]
[1723128561338,6.4619,160.23,160.07,6.6447]
[1723128561743,6.2419,160.21,160.11,6.2453]
[1723128561966,0.34,160.22,159.92,41.55]
[1723128561967,1.73071773,160.2,159.99,22.3772]
[1723128562165,6.2457,160.11,160.01,6.2492]
[1723128562458,6.2457,160.11,159.99,22.3772]
[1723128562459,0.17,160.12,159.99,6.7415]
[1723128562773,6.2461,160.1,160.0,6.2499]
[1723128562936,0.17,160.11,159.93,16.2981]
[1723128563140,1.90176161,160.11,159.93,16.2981]
[1723128563341,0.17,160.1,159.93,16.2981]
[1723128563563,0.17,160.1,160.0,6.2497]
[1723128563762,41.55,160.15,159.93,16.2981]
[1723128563964,30.0,160.1,159.93,16.2981]
[1723128564345,0.17,160.09,159.99,6.25]
[1723128564557,36.2464,160.1,160.0,6.2499]
[1723128564750,30.0,160.1,159.99,6.2503]
[1723128564954,30.0,160.1,160.01,6.2494]
[1723128565247,1.56165085,160.1,159.93,16.2981]
[1723128565444,0.34,160.11,159.92,6.2782]
[1723128565445,6.2474,160.07,159.97,6.2511]
[1723128565645,6.2468,160.08,159.98,6.59884049]
[1723128565866,6.2468,160.08,159.98,0.34814049]
[1723128565867,41.55,160.07,159.98,0.34814049]
[1723128566380,47.7972,160.07,159.98,0.34814049]
[1723128566544,0.34,160.09,159.98,0.34814049]
[1723128566545,0.17,160.09,159.98,0.34814049]
[1723128566742,6.2468,160.09,159.98,0.34814049]
[1723128566970,9.1448208,160.09,159.99,6.25]
[1723128567275,2.8984208,160.09,159.98,0.34814049]
[1723128567568,0.17,160.08,159.98,0.34814049]
[1723128567749,0.17,160.09,159.98,0.34814049]
[1723128568069,0.17,160.09,159.99,6.2501]
[1723128568285,9.63422146,160.1,159.98,0.34814049]
[1723128568869,6.248,160.05,159.98,0.34814049]
[1723128569164,6.2476,160.06,159.98,0.34814049]
[1723128569371,6.51309092,160.09,159.99,6.2503]
[1723128569778,6.51309092,160.09,159.92,6.2782]
[1723128569944,15.6198,160.06,159.87,22.33778228]
[1723128570146,41.55,160.03,159.87,6.264]
[1723128570349,30.0,160.04,159.87,6.264]
[1723128570566,30.0,160.04,159.96,6.2512]
[1723128570772,41.55,160.08,160.0,6.2498]
[1723128570948,41.55,160.08,159.87,6.264]
[1723128571147,43.11203829,160.08,159.87,6.264]
[1723128571375,41.55,160.08,159.87,6.264]
[1723128571550,41.55,160.08,159.97,6.2511]
[1723128571754,41.55,160.08,159.96,6.2514]
[1723128571969,41.55,160.08,159.87,6.264]
[1723128572270,41.55,160.08,159.88,20.0]
[1723128572454,0.17,160.07,159.88,20.0]
[1723128572649,6.2489,160.03,159.93,6.2526]
[1723128572966,0.17,160.07,159.88,20.0]
[1723128573163,0.34,160.07,159.88,20.0]
[1723128573361,6.2491,160.03,159.93,6.2525]
[1723128573574,0.17,160.02,159.93,6.2525]
[1723128573754,0.17,160.02,159.95,7.0873333]
[1723128573951,0.17,160.07,159.95,7.0873333]
[1723128573952,0.17,160.03,159.95,0.8354333]
[1723128574161,6.5888,160.03,159.95,0.8354333]
[1723128574680,0.34,160.03,159.95,0.8354333]
[1723128574851,1.73247791,160.02,159.95,0.8354333]
[1723128575049,41.55,159.99,159.82,6.264]
[1723128575265,6.591,159.98,159.88,6.2546]
[1723128575569,0.34,159.98,159.89,6.2542]
[1723128575771,41.55,160.03,159.94,6.2522]
[1723128575980,6.2481,160.05,159.81,6.2513]
[1723128576189,2.93175526,160.06,159.96,6.2512]
[1723128576481,6.2493,160.02,159.92,6.2528]
[1723128576670,1.56257691,160.06,159.91,6.2534]
[1723128576976,41.55,160.02,159.81,6.2513]
[1723128577362,6.2513,159.97,159.81,6.2513]
[1723128577681,0.17,160.01,159.81,6.2513]
[1723128577682,0.34,159.96,159.81,6.2513]
[1723128577852,6.2508,159.98,159.88,6.2543]
[1723128578052,6.5912,159.97,159.87,6.255]
[1723128578291,6.4212,159.97,159.88,6.2546]
[1723128578460,0.17,159.96,159.88,6.2546]
[1723128578659,0.17,159.97,159.89,6.2542]
[1723128578965,26.2499,160.01,159.81,6.2513]
[1723128579176,6.251,159.98,159.81,6.2513]
[1723128579355,0.34,159.97,159.81,6.2513]
[1723128579557,0.34,159.97,159.73,6.2603]
[1723128579558,6.2558,159.85,159.73,6.2603]
[1723128579770,15.76,159.89,159.68,6.7947]
[1723128579771,41.55,159.82,159.68,6.7947]
[1723128580355,41.55,159.82,159.73,6.0]
[1723128581276,2.82686955,159.84,159.73,6.0]
[1723128581491,41.55,159.86,159.73,6.0]
[1723128581699,47.8054,159.86,159.76,6.2593]
[1723128581862,8.16005043,159.85,159.73,6.0]
[1723128582063,41.55,159.82,159.73,6.0]
[1723128582267,0.34,159.81,159.73,6.0]
[1723128582584,41.55,159.82,159.73,6.0]
[1723128582771,0.34,159.81,159.73,6.0]
[1723128582971,0.17,159.81,159.73,6.0]
[1723128583167,21.73453975,159.81,159.73,6.0]
[1723128583379,41.55,159.78,159.73,6.0]
[1723128584983,0.34,159.77,159.73,6.0]
[1723128585181,20.34,159.77,159.73,2.7406073]
[1723128585581,20.0,159.77,159.73,2.7406073]
[1723128586892,0.17,159.76,159.73,1.67979034]
[1723128587190,20.0,159.77,159.73,1.67979034]
[1723128587691,20.0,159.77,159.73,1.39482146]
[1723128587891,20.0,159.77,159.7,0.35231716]
[1723128588191,41.55,159.82,159.73,6.2605]
[1723128588381,13.5386034,159.91,159.7,0.35231716]
[1723128588574,55.0886034,159.91,159.74,0.17]
[1723128588888,55.0886034,159.91,159.82,6.2567]
[1723128589083,57.92486253,159.91,159.74,6.7647]
[1723128589397,41.55,159.87,159.71,0.17]
[1723128589568,6.2559,159.85,159.75,6.2597]
[1723128589768,47.8054,159.87,159.71,0.07781624]
[1723128589969,41.55,159.87,159.71,0.41781624]
[1723128590280,41.55,159.87,159.79,6.2581]
[1723128590470,41.55,159.87,159.72,0.07537755]
[1723128590471,41.55,159.87,159.81,6.2573]
[1723128590791,41.55,159.87,159.72,0.07537755]
[1723128590792,41.55,159.87,159.82,6.257]
[1723128590980,41.55,159.87,159.81,6.2574]
[1723128591175,41.55,159.87,159.72,0.07537755]
[1723128591890,41.55,159.87,159.79,6.2581]
[1723128592189,12.77203217,159.9,159.72,0.07537755]
[1723128592386,20.0,159.89,159.81,6.2573]
[1723128592609,20.0,159.89,159.72,0.07537755]
[1723128593086,20.0,159.89,159.81,6.2573]
[1723128593292,6.51813217,159.9,159.72,0.07537755]
[1723128593590,13.5386034,159.91,159.72,0.07537755]
[1723128593971,19.7924034,159.91,159.81,6.257]
[1723128594401,13.5386034,159.91,159.72,0.07537755]
[1723128594698,6.51393076,159.93,159.76,18.78]
[1723128594897,2.85566738,159.99,159.76,18.78]
[1723128594898,2.85566738,159.99,159.77,84.12]
[1723128595190,6.5103,160.02,159.91,6.2534]
[1723128595401,6.5103,160.02,159.96,6.2515]
[1723128595580,41.55,160.07,159.84,18.78]
[1723128595790,1.56189607,160.06,159.85,65.34]
[1723128596117,6.2504,159.99,159.89,6.2542]
[1723128596283,16.1192,159.97,159.78,6.1835]
[1723128596480,41.55,159.93,159.8,6.2574]
[1723128596781,7.81706865,159.92,159.82,6.257]
[1723128596988,20.17,159.92,159.77,0.07535396]
[1723128597196,6.2535,159.91,159.81,6.2571]
[1723128597399,6.5939,159.9,159.8,6.2578]
[1723128597698,41.55,159.85,159.77,0.07535396]
[1723128597900,26.5966,159.84,159.77,0.07535396]
[1723128598074,45.0,159.83,159.78,6.2586]
[1723128598276,45.0,159.83,159.76,6.2591]
[1723128598607,45.0,159.83,159.7,0.35231716]
[1723128598910,45.0,159.83,159.75,6.2597]
[1723128599077,45.0,159.83,159.7,0.35231716]
[1723128599485,45.0,159.83,159.74,6.2598]
[1723128599875,45.0,159.83,159.74,6.26]
[1723128600098,45.0,159.83,159.75,6.2596]
[1723128600286,45.0,159.83,159.7,0.35231716]
[1723128600287,0.17,159.82,159.7,0.35231716]
[1723128600491,6.2584,159.79,159.7,0.35231716]
[1723128600694,45.0,159.78,159.7,0.35231716]
[1723128601378,45.34,159.79,159.7,0.35231716]
[1723128601577,20.0,159.78,159.7,0.35231716]
[1723128601799,45.0,159.77,159.73,6.2601]
[1723128601994,45.0,159.77,159.7,0.35231716]
[1723128602200,45.0,159.77,159.7,6.61401716]
[1723128602405,45.0,159.77,159.7,0.35231716]
[1723128602592,45.0,159.77,159.7,6.61391716]
[1723128603200,6.3928,159.76,159.7,0.35231716]
[1723128603402,45.0,159.75,159.7,0.35231716]
[1723128603914,6.3928,159.76,159.7,6.61361716]
[1723128604134,6.3928,159.76,159.7,0.35231716]
[1723128604413,0.17,159.75,159.7,0.35231716]
[1723128604628,6.3928,159.76,159.7,0.35231716]
[1723128604916,6.3928,159.76,159.7,6.61401716]
[1723128605085,6.3928,159.76,159.72,6.2608]
[1723128605510,6.3928,159.76,159.7,0.35231716]
[1723128606115,41.55,159.74,159.7,0.35231716]
[1723128608288,0.34,159.73,159.7,0.35231716]
[1723128608489,41.55,159.7,159.63,0.8354333]
[1723128608725,1.56567263,159.69,159.63,0.8354333]
[1723128609110,41.55,159.7,159.63,0.8354333]
[1723128609413,41.55,159.7,159.63,6.2641]
[1723128609723,41.55,159.7,159.58,22.16524644]
[1723128610218,48.06853974,159.74,159.58,22.16524644]
[1723128610513,41.55,159.74,159.58,22.16524644]
[1723128610818,41.55,159.74,159.59,0.17]
[1723128611021,41.55,159.74,159.59,0.34]
[1723128611213,41.55,159.74,159.59,20.34]
[1723128611519,41.55,159.78,159.59,20.34]
[1723128611816,41.55,159.78,159.6,63.83185373]
[1723128612030,41.55,159.78,159.61,20.39185048]
[1723128612218,41.55,159.78,159.62,17.067]
[1723128612552,41.55,159.78,159.63,20.34]
[1723128612894,6.6479,159.82,159.63,20.34]
[1723128613216,1.5646131,159.87,159.63,20.34]
[1723128613217,6.7516,159.87,159.65,6.6672]
[1723128613416,6.7516,159.87,159.66,65.34]
[1723128615203,41.55,159.84,159.66,20.34]
[1723128615421,45.0,159.83,159.66,20.34]
[1723128615623,45.0,159.83,159.67,45.0]
[1723128615800,6.7516,159.87,159.68,20.34]
[1723128616000,6.7516,159.87,159.69,45.0]
[1723128616219,6.7516,159.87,159.7,20.34]
[1723128616429,16.2161,159.89,159.71,45.0]
[1723128616621,16.2161,159.89,159.72,0.34]
[1723128616925,16.2161,159.89,159.72,20.34]
[1723128617135,6.6787,159.93,159.73,45.0]
[1723128617346,17.0357,159.95,159.75,6.8299]
[1723128617549,6.5408,159.98,159.76,65.34]
[1723128618221,8.10375923,159.98,159.76,65.34]
[1723128618538,6.5408,159.98,159.76,65.34]
[1723128618829,6.5408,159.98,159.76,20.34]
[1723128619033,41.55,159.92,159.76,20.34]
[1723128619727,1.56334846,159.91,159.75,6.8299]
[1723128619904,41.55,159.88,159.75,6.8299]
[1723128620526,41.55,159.92,159.75,6.8299]
[1723128621635,1.56347738,159.91,159.75,6.8299]
[1723128621852,16.8856,159.9,159.65,22.1988]
[1723128622012,1.56401926,159.89,159.65,22.1988]
[1723128622343,41.55,159.84,159.65,22.1988]
[1723128622651,45.17,159.83,159.65,22.1988]
[1723128623206,45.0,159.83,159.65,22.1988]
[1723128623912,0.17,159.82,159.65,22.1988]
[1723128624437,41.55,159.84,159.65,22.1988]
[1723128624621,6.4445,159.86,159.65,22.1988]
[1723128624812,41.55,159.88,159.65,22.1988]
[1723128625026,6.4115,159.91,159.65,22.1988]
[1723128625216,41.55,159.84,159.65,22.1988]
[1723128625450,41.55,159.84,159.66,20.17]
[1723128625738,41.55,159.84,159.66,20.0]
[1723128625943,1.56443347,159.83,159.66,20.0]
[1723128626114,41.55,159.84,159.66,20.0]
[1723128626438,16.8856,159.9,159.67,45.0]
[1723128626439,41.55,159.88,159.67,45.0]
[1723128626738,16.8856,159.9,159.68,20.0]
[1723128626915,41.55,159.87,159.69,45.17]
[1723128627114,41.55,159.87,159.7,20.17]
[1723128627316,41.55,159.87,159.71,45.17]
[1723128627648,16.8856,159.9,159.72,20.17]
[1723128627837,41.55,159.92,159.73,51.8382]
[1723128628156,1.56344512,159.91,159.74,20.34]
[1723128628362,8.07638764,159.91,159.74,20.34]
[1723128628526,6.51294252,159.91,159.74,20.34]
[1723128628726,41.55,159.92,159.75,45.0]
[1723128629036,41.55,159.96,159.77,16.0368]
[1723128629239,6.8832,159.97,159.78,65.17]
[1723128629528,41.55,160.0,159.79,0.17]
[1723128630063,49.62735178,160.0,159.79,0.17]
[1723128630735,49.62735178,160.0,159.73,6.8382]
[1723128630736,41.55,159.92,159.73,6.8382]
[1723128630920,47.7858,159.92,159.73,6.8382]
[1723128631925,0.17,159.91,159.73,6.8382]
[1723128632149,41.55,159.88,159.73,6.8382]
[1723128632353,46.7340249,159.87,159.73,6.8382]
[1723128632647,45.0,159.87,159.73,6.8382]
[1723128633447,16.5224,159.91,159.73,6.8382]
[1723128633629,41.55,159.96,159.73,6.8382]
[1723128633832,41.55,159.96,159.74,65.17]
[1723128634356,41.55,159.96,159.75,0.17]
[1723128634739,41.55,159.96,159.76,16.8358]
[1723128634932,41.55,159.96,159.77,65.34]
[1723128636564,48.06458448,160.0,159.77,68.15955822]
[1723128636764,1.56271143,159.99,159.78,6.8071]
[1723128637064,1.56271143,159.99,159.79,65.34]
[1723128637270,1.56271143,159.99,159.79,20.34]
[1723128637773,48.06458448,160.0,159.8,45.0]
[1723128638065,48.06458448,160.0,159.81,20.34]
[1723128638271,48.06458448,160.0,159.82,45.0]
[1723128638454,6.51458448,160.0,159.83,20.34]
[1723128638659,4.43473284,160.01,159.83,20.0]
[1723128638953,41.55,160.0,159.83,20.0]
[1723128639143,1.56319672,159.99,159.83,20.0]
[1723128639339,1.56319672,159.99,159.79,20.0]
[1723128639562,43.11317656,160.0,159.79,20.0]
[1723128639762,45.0,159.99,159.79,20.0]
[1723128640069,41.55,159.96,159.79,20.0]
[1723128640374,45.34,159.95,159.78,6.8071]
[1723128641167,41.55,159.92,159.72,6.6188]
[1723128641353,45.0,159.91,159.72,6.6188]
[1723128641859,23.3944,159.94,159.72,6.6188]
[1723128642264,23.3944,159.94,159.72,25.3988]
[1723128642465,23.3944,159.94,159.73,0.17]
[1723128642674,23.3944,159.94,159.73,65.34]
[1723128642969,23.3944,159.94,159.73,45.34]
[1723128643157,41.55,159.96,159.74,20.0]
[1723128643470,6.3925,160.0,159.78,6.5633]
[1723128643686,6.3925,160.0,159.79,65.34]
[1723128644343,41.55,159.99,159.79,65.34]
[1723128644543,1.56305654,159.98,159.79,20.0]
[1723128644767,0.34,159.97,159.79,20.0]
[1723128645470,0.34,159.97,159.78,6.5633]
[1723128645672,1.90334786,159.97,159.78,6.5633]
[1723128645994,0.34,159.97,159.78,6.5633]
[1723128646284,20.34,159.97,159.78,6.5633]
[1723128646573,45.0,159.96,159.78,6.5633]
[1723128646745,0.34,159.97,159.78,6.5633]
[1723128647376,0.34,159.97,159.79,0.17]
[1723128647557,0.34,159.97,159.79,0.34]
[1723128647956,1.56325592,159.96,159.79,20.34]
[1723128648179,0.34,159.95,159.79,20.0]
[1723128648554,46.90346554,159.95,159.79,18.5]
[1723128648849,46.90346554,159.95,159.68,22.6827]
[1723128649045,20.0,159.94,159.68,22.6827]
[1723128649246,22.9238,159.91,159.69,6.52179414]
[1723128649552,46.90400565,159.9,159.69,6.52179414]
[1723128649863,41.55,159.88,159.69,6.52179414]
[1723128650089,22.6422,159.83,159.69,6.52179414]
[1723128650256,46.56487067,159.82,159.63,2.75276338]
[1723128650573,0.17,159.81,159.62,23.34759314]
[1723128650779,30.17,159.81,159.62,23.34759314]
[1723128651085,45.0,159.8,159.62,23.34759314]
[1723128651263,46.56482565,159.8,159.62,23.34759314]
[1723128651583,45.0,159.8,159.62,19.69073431]
[1723128651759,45.0,159.8,159.63,20.0]
[1723128651958,0.17,159.79,159.63,20.0]
[1723128652349,45.0,159.8,159.63,20.0]
[1723128652961,30.0,159.81,159.63,20.0]
[1723128653181,22.6422,159.83,159.64,45.0]
[1723128653351,22.6422,159.83,159.65,20.17]
[1723128653550,22.6422,159.83,159.66,45.0]
[1723128653857,0.8354333,160.03,159.68,47.8143]
[1723128653858,6.4036,159.88,159.68,47.8143]
[1723128654061,6.4036,159.88,159.69,65.34]
[1723128654675,16.1236,159.89,159.7,16.4732]
[1723128654980,6.4427,159.93,159.72,41.55]
[1723128655151,6.4427,159.93,159.73,20.17]
[1723128655351,6.4427,159.93,159.74,45.17]
[1723128655648,6.4427,159.93,159.75,20.17]
[1723128655850,6.4427,159.93,159.76,45.0]
[1723128656051,6.4427,159.93,159.77,20.34]
[1723128656658,6.4427,159.93,159.77,0.34]
[1723128656987,1.7336847,159.92,159.77,0.34]
[1723128657479,0.17,159.91,159.77,0.17]
[1723128657687,0.17,159.91,159.7,16.4732]
[1723128657855,41.55,159.9,159.7,16.4732]
[1723128658061,45.34,159.89,159.7,16.4732]
[1723128658671,46.90394085,159.89,159.7,16.4732]
[1723128659070,45.34,159.89,159.7,16.4732]
[1723128659287,45.34,159.89,159.71,20.0]
[1723128660253,45.34,159.89,159.72,0.17]
[1723128660872,41.55,159.9,159.72,0.17]
[1723128661395,41.55,159.9,159.72,0.34]
[1723128661950,1.56404311,159.89,159.7,16.4732]
[1723128662172,21.56425891,159.89,159.7,16.4732]
[1723128662371,45.34,159.88,159.7,16.4732]
[1723128662675,45.34,159.89,159.7,16.4732]
[1723128662975,1.56400537,159.88,159.7,16.4732]
[1723128663171,0.34,159.87,159.7,16.4732]
[1723128663476,45.34,159.87,159.7,16.4732]
[1723128663784,46.90435878,159.87,159.7,16.4732]
[1723128664085,58.3359,159.86,159.68,6.2643]
[1723128664279,46.56468797,159.85,159.68,6.2643]
[1723128664574,0.17,159.84,159.68,6.2643]
[1723128665191,1.73441624,159.85,159.68,6.2643]
[1723128665477,0.17,159.85,159.69,0.34]
[1723128665681,1.90433328,159.85,159.69,0.34]
[1723128666383,6.736,159.84,159.69,0.34]
[1723128666583,46.73454989,159.83,159.69,0.17]
[1723128666779,1.73472742,159.82,159.69,0.17]
[1723128667084,0.17,159.81,159.64,15.6897]
[1723128667382,1.56462979,159.81,159.64,25.05288153]
[1723128667967,0.17,159.8,159.64,25.05288153]
[1723128668169,0.34,159.8,159.65,20.0]
[1723128668360,33.9,159.78,159.63,12.94178092]
[1723128668575,45.17,159.77,159.63,6.4173]
[1723128668891,45.0,159.77,159.63,6.4173]
[1723128669673,45.0,159.77,159.63,4.4173]
[1723128670060,1.5650569,159.76,159.63,4.4173]
[1723128670260,45.0,159.77,159.63,4.4173]
[1723128670880,1.56484636,159.83,159.63,4.4173]
[1723128671193,33.9,159.8,159.63,4.4173]
[1723128671566,33.9,159.8,159.64,0.34]
[1723128672016,16.7859,159.86,159.65,0.05183749]
[1723128672172,16.7859,159.86,159.65,20.05183749]
[1723128672476,16.7859,159.86,159.66,45.39183424]
[1723128672674,16.7859,159.86,159.67,20.05183099]
[1723128672876,1.56434474,159.83,159.68,0.39182775]
[1723128673069,1.56484356,159.82,159.69,0.0518245]
[1723128673273,33.9,159.79,159.69,0.0518245]
[1723128673667,6.736,159.84,159.69,0.0518245]
[1723128674583,42.20060429,159.84,159.69,0.0518245]
[1723128675569,0.34,159.83,159.69,0.0518245]
[1723128675761,6.736,159.84,159.69,0.0518245]
[1723128676188,6.736,159.84,159.69,0.3918245]
[1723128676591,1.56439777,159.83,159.69,0.3918245]
[1723128676774,1.56439777,159.83,159.69,0.0518245]
[1723128676968,0.17,159.82,159.69,0.0518245]
[1723128677167,33.9,159.8,159.69,0.0518245]
[1723128677387,46.90527388,159.79,159.69,0.0518245]
[1723128677597,45.34,159.79,159.69,0.0518245]
[1723128677974,33.9,159.77,159.69,0.0518245]
[1723128678282,46.90535358,159.76,159.6,9.81069467]
[1723128678465,46.90535358,159.76,159.6,12.6433332]
[1723128678668,45.34,159.76,159.6,12.6433332]
[1723128678883,46.90521974,159.76,159.6,12.6433332]
[1723128679087,45.34,159.76,159.6,12.6433332]
[1723128679297,1.56522427,159.75,159.61,20.0]
[1723128679464,45.34,159.76,159.61,20.0]
[1723128680100,46.7351449,159.76,159.61,20.0]
[1723128680396,6.8763,159.74,159.6,9.81069467]
[1723128680583,45.0,159.73,159.6,9.81069467]
[1723128681471,0.17,159.72,159.6,9.81069467]
[1723128681786,0.34,159.72,159.57,2.81518959]
[1723128681987,0.34,159.72,159.56,22.16108692]
[1723128681988,0.34,159.72,159.61,0.05185048]
[1723128682172,1.56579996,159.71,159.61,0.05185048]
[1723128682372,0.34,159.7,159.61,0.05185048]
[1723128684582,0.34,159.71,159.61,0.05185048]
[1723128684774,1.56599467,159.7,159.61,0.05185048]
[1723128684976,0.34,159.69,159.61,0.05185048]
[1723128685291,1.56620743,159.68,159.61,0.05185048]
[1723128685472,0.34,159.69,159.56,22.16108692]
[1723128685473,0.17,159.67,159.56,22.21295365]
[1723128685672,0.17,159.69,159.56,22.21295365]
[1723128685872,0.34,159.69,159.56,22.21295365]
[1723128686894,45.0,159.7,159.57,20.34]
[1723128687189,45.17,159.7,159.57,20.34]
[1723128687395,0.17,159.69,159.57,20.34]
[1723128687593,45.17,159.7,159.57,0.17]
[1723128687901,0.34,159.69,159.56,22.21295365]
[1723128688775,6.51533495,159.73,159.56,22.21295365]
[1723128689102,1.56555646,159.73,159.57,23.2439]
[1723128689283,47.28533087,159.74,159.57,23.2439]
[1723128689483,13.38533087,159.74,159.58,20.0]
[1723128689683,6.8763,159.74,159.58,20.0]
[1723128690203,6.8763,159.74,159.59,0.34]
[1723128690495,6.2768,159.8,159.61,33.9]
[1723128690676,6.2768,159.8,159.62,20.17]
[1723128690876,6.2768,159.8,159.63,0.17]
[1723128691176,1.56491548,159.79,159.63,0.17]
[1723128691500,33.9,159.78,159.63,0.17]
[1723128691699,33.9,159.78,159.63,20.17]
[1723128691884,33.9,159.78,159.64,0.17]
[1723128692196,6.2768,159.8,159.64,0.17]
[1723128692401,6.2768,159.8,159.63,0.17]
[1723128692603,6.2768,159.8,159.61,33.9]
[1723128692604,6.2768,159.8,159.62,20.34]
[1723128693609,7.82337653,159.79,159.62,20.34]
[1723128693904,7.82337653,159.79,159.58,20.0]
[1723128694088,0.17,159.78,159.58,20.0]
[1723128694292,1.56544544,159.77,159.58,20.0]
[1723128694493,0.34,159.76,159.58,20.0]
[1723128694689,0.17,159.77,159.58,20.0]
[1723128694894,1.56540695,159.77,159.58,20.0]
[1723128695080,35.80547449,159.76,159.58,20.0]
[1723128695280,46.73557221,159.75,159.58,20.0]
[1723128695588,0.17,159.74,159.58,20.0]
[1723128695911,33.9,159.79,159.58,20.0]
[1723128696125,1.56501809,159.78,159.58,20.0]
[1723128696420,33.9,159.76,159.58,20.0]
[1723128696583,33.9,159.76,159.59,45.17]